Cogmind - Beta 16 @@@ ROGUE MODE // 2025.12.25 @ 14:46:43 Player: Skergy Result: Destroyed by RO-87M(R) with Subdweller Beam Cannon Performance ------------- Evolutions (0) 0 Regions Visited (2) 400 Robots Destroyed (18) 90 Value Destroyed (558) 558 Prototype IDs (0) 0 Alien Tech Used (0) 0 Bonus (0) 0 TOTAL SCORE: 1048 Bonus ------- None Cogmind --------- Core Integrity 0/250 Matter 235/300 Energy 196/200 System Corruption 0% Temperature Cool (20) Movement Walking (120) Location -10/Subcaves Parts ------- > --- POWER (1) -------- Subdweller Power Source > --- PROPULSION (2) --- Aluminum Leg Aluminum Leg > --- UTILITY (2) ------ Small Storage Unit Sensor Array > --- WEAPON (2) ------- Mining Claw > --- INVENTORY (8) ---- Subdweller Power Source Subdweller Monowheel Subdweller Optics Makeshift Light Armor Plating Hacking Suite Peak State ------------ > --- POWER ------------ (None) > --- PROPULSION ------- Spiked Treads Aluminum Leg > --- UTILITY ---------- Small Storage Unit Sensor Array > --- WEAPON ----------- Subdweller Laser Battle Cannon > --- INVENTORY -------- Subdweller Power Source Subdweller Power Source Aluminum Leg Subdweller Monowheel Subdweller Optics Makeshift Light Armor Plating Hacking Suite Mining Claw [Rating: 10] Favorites ----------- Power Light Ion Engine Engine Light Ion Engine Power Core Light Nuclear Core Propulsion Aluminum Leg Treads Light Treads Leg Aluminum Leg Flight Unit Flight Unit Utility Small Storage Unit Device Sensor Array Storage Small Storage Unit Weapon Light Assault Rifle Energy Gun Subdweller Laser Ballistic Gun Light Assault Rifle Ballistic Cannon Battle Cannon Launcher Grenade Launcher Slashing Weapon Mining Claw Build | -11 -10 -10 ------- Run | Yrd Mat Sub Slots Evolved . | . . . Power . | . . . Propulsion . | . . . Utility . | . . . Weapon . | . . . Parts Attached 22 | 6 8 8 Power 5 | 1 2 2 Engine 4 | 1 1 2 Core 1 | . 1 . Reactor . | . . . Propulsion 8 | 2 3 3 Treads 3 | 2 . 1 Leg 4 | . 2 2 Wheel . | . . . Hover . | . . . Flight 1 | . 1 . Utility 2 | 1 1 . Device 1 | . 1 . Storage 1 | 1 . . Processor . | . . . Hackware . | . . . Protection . | . . . Artifact . | . . . Weapon 7 | 2 2 3 Energy Gun 2 | 1 . 1 Energy Cannon . | . . . Ballistic Gun 2 | 1 1 . Ballistic Cannon 1 | . . 1 Launcher 1 | . . 1 Special Weapon . | . . . Impact Weapon . | . . . Slashing Weapon 1 | . 1 . Piercing Weapon . | . . . Special Melee Weapon . | . . . Unidentified Prototypes . | . . . Parts Lost 12 | . 4 8 Power 2 | . 1 1 Propulsion 5 | . 2 3 Utility . | . . . Weapon 5 | . 1 4 Highest Loss Streak 3 | . 3 3 To Critical Strikes 1 | . . 1 Average Backups 7 | 2 7 7 Power 1 | . 1 1 Propulsion 3 | 1 3 2 Utility 1 | . . 1 Weapon 1 | . 1 . Tool/Special . | . . . Unused Backups 7 | . . 7 Power 1 | . . 1 Propulsion 3 | . . 3 Utility 3 | . . 3 Weapon . | . . . Tool/Special . | . . . Average Slot Usage (%) 80 | . 82 78 Engine 3 | . 1 4 Core 2 | . 5 . Treads 6 | . 11 3 Leg 14 | . 12 16 Flight 1 | . 3 . Device 12 | . 9 14 Storage 14 | . 14 14 Energy Gun 9 | . 6 11 Ballistic Gun 6 | . 14 . Launcher 1 | . . 1 Slashing Weapon 6 | . 1 11 Peak Build Rating 10 | 6 9 10 Average Rating 7 | 5 6 7 On Entrance 4 | . 6 6 Avg Prop Armor Cover (%) 6 | . 3 9 Naked Turns . | . . . Heaviest Build 16 | 11 14 16 Greatest Support 40 | 40 40 20 Greatest Overweight (x) 1 | . . 1 Average Overweight (x) . | . . . Largest Inventory Capacity 8 | 8 8 8 Average Capacity 7 | 7 8 8 Most Carried 8 | 4 8 8 Average Carried 7 | 2 7 7 Final Capacity 8 | 8 8 8 Final Carried 7 | 4 7 5 Class Distribution -------------------- 100% | Mutant Dominant Class ---------------- Mutant | -10/Materials Mutant | -10/Subcaves Resources | -11 -10 -10 ----------- Run | Yrd Mat Sub Matter Collected 539 | 172 194 173 Remotely . | . . . Salvage Created 505 | . 290 215 Parts 34 | . 19 15 Haulers Intercepted . | . . . Recyclers Shooed 2 | . 2 . Parts Field Recycled . | . . . Retrieved Matter . | . . . Parts Self-Destructed 1 | . . 1 Prevented . | . . . Parts Restored . | . . . Kills | -11 -10 -10 ------- Run | Yrd Mat Sub Combat Hostiles Destroyed 18 | . 10 8 Melee 2 | . . 2 Guns 8 | . 8 . Cannons 2 | . . 2 AOE 6 | . 2 4 Classes Destroyed 4 | . 2 2 Swarmer 6 | . 5 1 Grunt 5 | . 5 . Sentry 1 | . . 1 Subdweller 6 | . . 6 Best Kill Streak 3 | . 3 3 Combat Bots Only 3 | . 3 3 Max Kills in Single Turn 2 | . 2 1 Gunslinging . | . . . Exploded 2 | . 2 1 Melee 1 | . . 1 Uniques/NPCs Destroyed . | . . . Combat | -11 -10 -10 -------- Run | Yrd Mat Sub Hostile Shots Fired 149 | . 84 65 Missed 46 | . 19 27 Hits 103 | . 65 38 Projectile 103 | . 65 38 Critical Strikes 1 | . . 1 Damage Taken 1602 | . 606 996 Core 255 | . 134 121 Absorbed by Shields . | . . . Core Remaining (%) 100 | 100 . . Volleys Fired 71 | . 44 27 Largest 2 | . 2 2 Hottest 93 | . 60 93 Shots Fired 118 | . 80 38 Gun 96 | . 80 16 Cannon 13 | . . 13 Launcher 9 | . . 9 Special . | . . . Kinetic 67 | . 49 18 Thermal 11 | . . 11 Explosive 9 | . . 9 Electromagnetic 31 | . 31 . Robot Hit Streak 20 | . 10 20 Robot Miss Streak 9 | . 9 4 Penetration Max . | . . . Secondary Targets 3 | . 3 . Max Gunslinging Chain 1 | . 1 . Shots Hit Robots 77 | . 40 37 Core Hits 34 | . 20 14 Critical Kills . | . . . Critical Parts Destroyed 1 | . . 1 Critical Strikes 3 | . . 3 Destroy 2 | . . 2 Blast 1 | . . 1 Melee Attacks 31 | . 3 28 Impact . | . . . Slashing 31 | . 3 28 Piercing . | . . . Sneak Attacks . | . . . Combat Hostiles . | . . . Follow-up Attacks . | . . . Damage Inflicted 1580 | . 632 948 Guns 605 | . 438 167 Cannons 210 | . . 210 Explosions 604 | . 194 410 Melee 161 | . . 161 Ramming . | . . . Kinetic 466 | . 209 257 Thermal 314 | . 194 120 Explosive 410 | . . 410 Electromagnetic 229 | . 229 . Impact . | . . . Slashing 161 | . . 161 Piercing . | . . . Highest Corruption . | . . . Average Corruption . | . . . Corruption Purged . | . . . Corruption Blocked . | . . . Overload Shots . | . . . Overflow Damage 2 | . 2 . Projectiles . | . . . Explosions 2 | . 2 . Melee . | . . . Knockbacks 2 | . . 2 Impact . | . . . Kinetic 2 | . . 2 Secondary . | . . . Self-Inflicted Damage 82 | . . 82 Shots 4 | . . 4 Rammed . | . . . Targets Rammed . | . . . Kicked . | . . . Crushed . | . . . Highest Temperature 120 | . 120 1 Average Temperature 38 | . 39 1 Received Heat Transfer 327 | . 138 189 Siege Activations . | . . . Martial Activations . | . . . Shielding Activations . | . . . Robots Disrupted . | . . . Combat Hostiles . | . . . Robots Corrupted . | . . . Combat Hostiles . | . . . Parts Fried . | . . . Impact Corruptions . | . . . Robots Melted . | . . . Combat Hostiles . | . . . Parts Melted 2 | . 2 . Heat Transferred 500 | . 350 150 Parts Sabotaged . | . . . Parts Stolen . | . . . Parts Stripped . | . . . Power Chain Reactions 3 | . 3 . Alert | -11 -10 -10 ------- Run | Yrd Mat Sub Maximum Alert Level . | . . . Low Security (%) 100 | 100 100 . Level 1 . | . . . Level 2 . | . . . Level 3 . | . . . Level 4 . | . . . Level 5 . | . . . High Security . | . . . Max Security . | . . . Peak Influence 116 | . 116 . Initial . | . . . Average 19 | . 20 . Influence Increases 408 | . 368 40 Destroy 0b10 Robot/C 240 | . 200 40 Destroy Leader 40 | . 40 . Successful Hack 60 | . 60 . Disable Machine 45 | . 45 . Destroy Structure 8 | . 8 . Partial Spotted 15 | . 15 . Influence Decreases 408 | . 368 40 Time Decay 277 | . 257 20 Lost Part 40 | . 20 20 Purge Threat 91 | . 91 . Squads Dispatched 2 | . 2 . Investigation 1 | . 1 . Extermination . | . . . Reinforcement 1 | . 1 . Assault . | . . . Garrison . | . . . Intercept . | . . . Searches Triggered . | . . . Construction Impeded . | . . . Haulers Reinforced . | . . . Active Scanning Responses . | . . . Cargo Convoy Interrupts . | . . . Stealth | -11 -10 -10 --------- Run | Yrd Mat Sub Distress Signals 2 | . 2 . Communications Jammed . | . . . Distress Signals . | . . . Times Spotted 33 | . 22 11 Peak Tracking Total 6 | . 6 3 Tactical Retreats . | . . . Traps | -11 -10 -10 ------- Run | Yrd Mat Sub Traps Triggered . | . . . Indirectly . | . . . Trap Hack Attempts . | . . . Triggered . | . . . Disarmed . | . . . Reprogrammed . | . . . Reused . | . . . Traps Extracted . | . . . Installed . | . . . Triggered . | . . . Machines | -11 -10 -10 ---------- Run | Yrd Mat Sub Machines Disabled 3 | . 3 . Max in Single Turn 1 | . 1 . Machines Repaired . | . . . Machines Dismantled . | . . . Machines Sabotaged . | . . . Overloaded Fab Kills . | . . . Hacking | -11 -10 -10 --------- Run | Yrd Mat Sub Machines Accessed 7 | . 7 . Terminals 5 | . 5 . Fabricators . | . . . Repair Stations . | . . . Recycling Units 2 | . 2 . Scanalyzers . | . . . Garrison Access . | . . . Total Hacks 26 | . 26 . Successful 17 | . 17 . Failed 9 | . 9 . Catastrophic 2 | . 2 . Database Lockouts . | . . . Manual 25 | . 25 . Terminals 21 | . 21 . Fabricators . | . . . Repair Stations . | . . . Recycling Units 5 | . 5 . Scanalyzers . | . . . Garrison Access . | . . . Terminal Hacks 4 | . 4 . Unreport Threat 2 | . 2 . Locate Traps 1 | . 1 . Recall Investigation 1 | . 1 . Fabricator Hacks . | . . . Repair Station Hacks . | . . . Recycling Unit Hacks . | . . . Scanalyzer . | . . . Garrison Access Hacks . | . . . Unauthorized Hacks 13 | . 13 . Terminals 12 | . 12 . Track 3 | . 3 . Assimilate 4 | . 4 . Botnet 4 | . 4 . Operators 1 | . 1 . Fabricators . | . . . Repair Stations . | . . . Recycling Units 1 | . 1 . Reject 1 | . 1 . Scanalyzers . | . . . Garrison Access . | . . . Data Cores Recovered . | . . . Used . | . . . Hacking Detections 6 | . 6 . Full Trace Events . | . . . Feedback Events . | . . . Feedback Blocked . | . . . Robot Schematics Acquired . | . . . Robots Built . | . . . Authchips . | . . . Time . | . . . Total Robot Build Rating . | . . . Part Schematics Acquired . | . . . Parts Built . | . . . Authchips . | . . . Time . | . . . Total Part Build Rating . | . . . Part Studies Acquired . | . . . Parts Repaired . | . . . Time . | . . . Parts Recycled . | . . . Recycled Matter . | . . . Retrieved Matter . | . . . Retrieved Components . | . . . Parts Scanalyzed . | . . . Part Schematics Acquired . | . . . Parts Damaged . | . . . Bothacking | -11 -10 -10 ------------ Run | Yrd Mat Sub Used RIF Installer . | . . . Robots Hacked . | . . . Non-combat . | . . . Combat . | . . . Robot Hacks Applied . | . . . Relay Couplers Released . | . . . Fabnet Peak Effective % . | . . . Robots Rewired . | . . . Allies Hacked . | . . . Hacks Repelled . | . . . Allies | -11 -10 -10 -------- Run | Yrd Mat Sub Total Allies 1 | . 1 . Largest Group 1 | . 1 1 Highest-Rated Group 10 | . 10 10 Highest-Rated Ally 10 | . 10 10 Total Orders . | . . . Ally Attacks . | . . . Total Damage . | . . . Kills . | . . . Allies Corrupted . | . . . Allies Melted . | . . . Intel | -11 -10 -10 ------- Run | Yrd Mat Sub Active Infowar (turns) 1901 | . 702 1199 Sensors 1901 | . 702 1199 Robot Analysis Total . | . . . Derelict Logs Recovered 2 | . . 2 Drone Launches . | . . . Drone Recoveries . | . . . Exploration | -11 -10 -10 ------------- Run | Yrd Mat Sub Turns Passed 2297 | 88 1010 1199 Spaces Moved 1182 | 49 516 617 Core 2 | 2 . . Treads 447 | 47 255 145 Legs 733 | . 261 472 Wheels . | . . . Hover . | . . . Flight . | . . . Fastest Speed 50 | 50 120 120 Average Speed 154 | 155 139 166 Slowest Speed 190 | 160 160 190 Overloaded Moves . | . . . Propulsion Burnouts . | . . . Robots Hopped . | . . . Potential Cave-ins 15 | . . 15 Cave-ins Triggered 2 | . . 2 Exploration Rate (%) 39 | 3 72 43 Regions Visited 2 Branch Regions 1 Pre-discovered Areas 2 | . . 2 Known Exits Taken . | . . . Unknown Exits Taken 2 | 1 1 . Scrap Searched . | . . . Spaces Dug 21 | . 2 19 Terrain Destroyed 47 | . 7 40 Melee 21 | . 2 19 Projectile . | . . . AOE 26 | . 5 21 Terrain Rammed . | . . . Walls Destroyed . | . . . Machines Disabled . | . . . Actions | -11 -10 -10 --------- Run | Yrd Mat Sub Total 1480 | 58 726 696 Wait 150 | . 148 2 Move 1179 | 48 515 616 Hop . | . . . Pick Up 16 | 4 4 8 Fast Attach 12 | 6 4 2 Attach 7 | . 1 6 Detach . | . . . Swap 6 | . 4 2 Drop 7 | . 3 4 Fire 71 | . 44 27 Melee 31 | . 3 28 Ram . | . . . Kick . | . . . Crush . | . . . Escape Stasis 1 | . . 1 Rewire . | . . . Trap . | . . . Miscellaneous . | . . . Route ------- -11/Scrapyard -10/Materials (discovered 3 exits: [*Mat] / [*Min] / [*Sub]) -10/Subcaves History --------- Turn | Location | Event 36 | -11/Scrapyard | Discovered new exit (range 15) 89 | -11/Scrapyard | Entered Materials 314 | -10/Materials | Build established: Mutant 484 | -10/Materials | Discovered new exit (range 10) 626 | -10/Materials | Core integrity fell below 50% 654 | -10/Materials | Lost 3 parts (1p1n1w) 659 | -10/Materials | Discovered new exit (range 7) 777 | -10/Materials | Discovered new exit (range 7) 1099 | -10/Materials | Entered Subcaves 1099 | -10/Subcaves | Accompanied by 1 ally 1192 | -10/Subcaves | A swath of the cavern ceiling suddenly collapsed 1246 | -10/Subcaves | Learned location of Zion (-7) 1265 | -10/Subcaves | Ambushed by Subdwellers from Twisted Machinery 1463 | -10/Subcaves | Crushed by falling debris 1502 | -10/Subcaves | Ambushed by Subdweller buried in earth 1564 | -10/Subcaves | Crushed by falling debris 2043 | -10/Subcaves | Shifting Twisted Machinery released Mak. Light Armor Plating 2055 | -10/Subcaves | Shifting Twisted Machinery released Sub. Monowheel 2241 | -10/Subcaves | Core integrity fell below 20% 2298 | -10/Subcaves | Destroyed by RO-87M(R) with Subdweller Beam Cannon Last Messages --------------- 02230_ Subatomizers dissect the Sub. Monowheel. 02230_ 1H-RXF(R) knocked back. 02233_ 1H-RXF(R) destroyed. 02242_ Subatomizers dissect the Sub. Monowheel. 02243_ PQ-SWY(R) destroyed. 02250_ Acquired 1 matter. 02251_ Acquired 23 matter. 02253_ Subatomizers dissect the Sub. Monowheel. 02253_ Acquired 1 matter. 02259_ Critical hit (Destroy). 02259_ Spk. Treads destroyed. 02265_ Sub. Laser destroyed. 02268_ Subatomizers dissect the Sub. Monowheel. 02290_ RO-87M(R) knocked back. 02292_ YZ-0SW(R) affixes Scrap Shield Fragment to Scrap Shield. 02293_ Subatomizers dissect the Sub. Monowheel. 02295_ Battle Cannon destroyed. 02297_ RO-87M(R) affixes Scrap Shield Fragment to Scrap Shield. Map ----- +----------------------------------------------------+ | ?????????????????????????????????????????????????? | | ?????????????????????????????????????????????????? | | ?????????????????????????????????????????????????? | | ?????????????????????????????????????????????????? | | ?????????????????????????????????????????????????? | | ?????????????????????????????????????????????????? | | ?????????????????????????????????????????????????? | | ?????????????????????????????????????????????????? | | ?????????????????????????????????????????????????? | | ?????????????????????????????????????????????????? | | ?????????????????????????????????????????????????? | | ???????#?????????????????????????????????????????? | | ?????## ?????????????????????????????????????????? | | ?????# ?????????????????????????###?????????????? | | ???### ????????????????????????## ##????????????? | | ???# ###??###?????????????????# ##???????????? | | #??# # #### ###???????????????# #???????????? | | # ??# ##???????###???## #???????????? | | ### ###?????# #### #????????????? | | ###???# #????????????? | | ## ###### #????????????? | | #### #### # % ## ### #?????????????? | | ???## ##??# # ##; ##?????????????? | | ????# ##??# ### % ##?????????????? | | ????# "##?# #?## #?????????????? | | ???## ""#? #??# @ ### #????????????? | | ?### ""#?# #??# =R% ##?# #???????????? | | ## " "##?# "#??##" ####??## #???????????? | | "" " ####?? #???##* [=#???????####???????????? | | ###?????# ##????##%RR ?????????????????????? | | "" #??????? #??????##;& ???????????????????? | | "" "#??????? ""???????# # ?????????????????? | | "" "#??????""""???????? ### #????????????????? | | """"#???????" ????????? #?? #????????????????? | | """#????????????????? ##???###????????????????? | | #""""????????????????? #????????????????????????? | | ?#" ????????????????# ?????????????????????????? | | ????????????????????? ?????????????????????????? | | ????????????????????? ?????????????????????????? | | ????????????????????? ?????????????????????????? | | ????????????????????" ?????????????????????????? | | ?????????????????????" ??????????????????????????? | | ?????????????????????????????????????????????????? | | ?????????????????????????????????????????????????? | | ?????????????????????????????????????????????????? | | ?????????????????????????????????????????????????? | | ?????????????????????????????????????????????????? | | ?????????????????????????????????????????????????? | | ?????????????????????????????????????????????????? | | ?????????????????????????????????????????????????? | +----------------------------------------------------+ Best States ------------- Heat Dissipation 25 Energy Generation 15 Energy Capacity 250 Matter Stores 300 Matter Capacity 300 Sight Range 16 Robot Scan Range 14 Terrain Scan Density 10 Evasion (%) 55 Recoil Reduction 2 Item Schematics ----------------- None Robot Schematics ------------------ None Fabricated ------------ Nothing Repaired ---------- Nothing Studied --------- None Alien Tech Used ----------------- None Achievements -------------- Do Not Disturb Resistances Are Futile Challenges ------------ None Game ------ Seed NavigationMyomerMantle Manual? 0 Play Time 00:21:52 Cumulative 85.0 hours Start 2025.12.25 @ 12:26:30 End 2025.12.25 @ 14:46:43 Sessions 3 Manual Loads 0 Difficulty Rogue Special Mode None Game No. 98 Rogue 98 Adventurer 0 Explorer 0 Win Type - Total 3 Types 3/0/0/0/0/0/0/0/0/0 Lore% 52 Gallery% 45 Achievement% 28 Wizard Run 0 Options --------- Layout 1 ASCII 0 Keyboard 1 Movement Vi Keybinds 0 Fullscreen 2 Font 24/Terminus Map View 50x35 Zoom Use 0% Tactical HUD 1 Map Filters NONE Filters NONE Steam 1 RUN: 088e34ab-e8f9-41d1-8628-62e3f23d1b75